fUSD/lending_fUSD_20260512
["ID","MTS","AMOUNT","RATE_DAILY","PERIOD"]
[422112877,1778577128000,-500.0,0.00041361,120]
[422112873,1778577128000,-500.0,0.00041361,120]
[422112879,1778577128000,-205.83835418,0.00041361,120]
[422112878,1778577128000,-160.45028532,0.00041361,120]
[422112882,1778577128000,-1157.42,0.00041361,120]
[422112884,1778577128000,-230.04023545,0.00041361,120]
[422112880,1778577128000,-157.25325594,0.00041361,120]
[422112881,1778577128000,-265.01529192,0.00041361,120]
[422112885,1778577128000,-163.32799393,0.00041361,120]
[422112883,1778577128000,-168.99134869,0.00041361,120]
[422112888,1778577128000,-264.02202307,0.00041361,120]
[422112920,1778577128000,-793.53,0.00041361,120]
[422112924,1778577128000,-793.53,0.00041361,120]
[422112917,1778577128000,-500.0,0.00041361,120]
[422112951,1778577128000,-202.2100658,0.00041361,120]
[422112960,1778577128000,-302.51993824,0.00041361,120]
[422112963,1778577128000,-153.20777621,0.00041361,120]
[422112961,1778577128000,-150.21847202,0.00041361,120]
[422112962,1778577128000,-3723.12770145,0.00041361,120]
[422112954,1778577128000,-169.78069662,0.00041361,120]
[422112959,1778577128000,-171.39444157,0.00041361,120]
[422112953,1778577128000,-194.87864203,0.00041361,120]
[422112957,1778577128000,-198.6474163,0.00041361,120]
[422112952,1778577128000,-157.86889686,0.00041361,120]
[422112955,1778577128000,-415.64157171,0.00041361,120]
[422112956,1778577128000,-174.77422158,0.00041361,120]
[422112958,1778577128000,-155.094604,0.00041361,120]
[422112964,1778577128000,-162.98048529,0.00041361,120]
[422112968,1778577128000,-186.53352613,0.00041361,120]
[422112967,1778577128000,-155.99052866,0.00041361,120]
[422112969,1778577128000,-613.3222336,0.00041361,120]
[422112965,1778577128000,-351.56839521,0.00041361,120]
[422112966,1778577128000,-370.0,0.00041361,120]
[422112975,1778577128000,-500.0,0.00041361,120]
[422112974,1778577128000,-500.0,0.00041361,120]
[422112971,1778577128000,-500.0,0.00041361,120]
[422112970,1778577128000,-500.0,0.00041361,120]
[422112977,1778577128000,-227.28630977,0.00041361,120]
[422112976,1778577128000,-500.0,0.00041361,120]
[422112972,1778577128000,-500.0,0.00041361,120]
[422112916,1778577128000,-500.0,0.00041361,120]
[422112948,1778577128000,-202.00964316,0.00041361,120]
[422112950,1778577128000,-166.51740899,0.00041361,120]
[422112973,1778577128000,-500.0,0.00041361,120]
[422112944,1778577128000,-180.37725021,0.00041361,5]
[422112947,1778577128000,-152.83821795,0.00041361,120]
[422112923,1778577128000,-793.53,0.00041361,120]
[422112922,1778577128000,-793.53,0.00041361,120]
[422112913,1778577128000,-153.86256304,0.00041361,120]
[422112921,1778577128000,-793.53,0.00041361,120]
[422112926,1778577128000,-793.53,0.00041361,120]
[422112937,1778577128000,-793.53,0.00041361,120]
[422112936,1778577128000,-793.53,0.00041361,120]
[422112931,1778577128000,-793.53,0.00041361,120]
[422112925,1778577128000,-793.53,0.00041361,120]
[422112934,1778577128000,-793.53,0.00041361,120]
[422112929,1778577128000,-793.53,0.00041361,120]
[422112932,1778577128000,-793.53,0.00041361,120]
[422112919,1778577128000,-161.91654415,0.00041361,120]
[422112933,1778577128000,-793.53,0.00041361,120]
[422112928,1778577128000,-793.53,0.00041361,120]
[422112941,1778577128000,-793.53,0.00041361,120]
[422112939,1778577128000,-793.53,0.00041361,120]
[422112943,1778577128000,-793.61267415,0.00041361,120]
[422112945,1778577128000,-153.27097304,0.00041361,120]
[422112946,1778577128000,-332.0,0.00041361,120]
[422112940,1778577128000,-793.53,0.00041361,120]
[422112949,1778577128000,-185.39099114,0.00041361,120]
[422112938,1778577128000,-793.53,0.00041361,120]
[422112935,1778577128000,-793.53,0.00041361,120]
[422112927,1778577128000,-793.53,0.00041361,120]
[422112930,1778577128000,-793.53,0.00041361,120]
[422112942,1778577128000,-793.53,0.00041361,120]
[422113016,1778577129000,-394.8672,0.00041361,120]
[422113018,1778577129000,-500.0,0.00041361,120]
[422113011,1778577129000,-500.0,0.00041361,120]
[422113017,1778577129000,-252.55212275,0.00041361,120]
[422113003,1778577129000,-163.65536061,0.00041361,120]
[422113014,1778577129000,-240.75065123,0.00041361,120]
[422113015,1778577129000,-368.75968718,0.00041361,120]
[422113012,1778577129000,-539.76835097,0.00041361,120]
[422113010,1778577129000,-639.52868303,0.00041361,120]
[422113019,1778577129000,-259.3055,0.00041361,120]
[422113013,1778577129000,-249.43485937,0.00041361,120]
[422113020,1778577129000,-574.0917054,0.00041361,120]
[422113029,1778577129000,-500.0,0.00041361,120]
[422113022,1778577129000,-500.0,0.00041361,120]
[422113026,1778577129000,-643.98570214,0.00041361,120]
[422113025,1778577129000,-210.65723009,0.00041361,120]
[422113028,1778577129000,-500.0,0.00041361,120]
[422113027,1778577129000,-254.50863005,0.00041361,120]
[422113030,1778577129000,-336.62588677,0.00041361,120]
[422113031,1778577129000,-290.4125261,0.00041361,120]
[422113032,1778577129000,-337.50012413,0.00041361,120]
[422113024,1778577129000,-212.54708034,0.00041361,120]
[422113033,1778577129000,-500.0,0.00041361,120]
[422113023,1778577129000,-597.85073698,0.00041361,120]
[422113007,1778577129000,-299.67026308,0.00041361,120]
[422113021,1778577129000,-500.0,0.00041361,120]
[422113004,1778577129000,-599.15944529,0.00041361,120]
[422112996,1778577129000,-155.73416036,0.00041361,120]
[422113008,1778577129000,-259.66394007,0.00041361,120]
[422113042,1778577129000,-500.0,0.00041361,120]
[422112979,1778577129000,-500.0,0.00041361,120]
[422112978,1778577129000,-500.0,0.00041361,120]
[422112980,1778577129000,-500.0,0.00041361,120]
[422112981,1778577129000,-516.34477058,0.00041361,120]
[422112982,1778577129000,-912.969674,0.00041361,120]
[422112984,1778577129000,-843.3699,0.00041361,120]
[422112983,1778577129000,-199.69913579,0.00041361,10]
[422112985,1778577129000,-172.41067867,0.00041361,120]
[422112986,1778577129000,-355.8006556,0.00041361,120]
[422112989,1778577129000,-161.17955705,0.00041361,120]
[422112987,1778577129000,-299.45764973,0.00041361,120]
[422112988,1778577129000,-189.50829333,0.00041361,120]
[422112991,1778577129000,-195.3739857,0.00041361,120]
[422112995,1778577129000,-310.54107484,0.00041361,120]
[422112992,1778577129000,-221.48531804,0.00041361,120]
[422112994,1778577129000,-186.46600077,0.00041361,120]
[422112993,1778577129000,-500.0,0.00041361,120]
[422112997,1778577129000,-534.57276613,0.00041361,120]
[422112990,1778577129000,-304.03577131,0.00041361,120]
[422113009,1778577129000,-325.56734088,0.00041361,120]
[422112999,1778577129000,-182.15721638,0.00041361,120]
[422112998,1778577129000,-441.22617043,0.00041361,120]
[422113000,1778577129000,-500.0,0.00041361,120]
[422113001,1778577129000,-631.52854775,0.00041361,120]
[422113006,1778577129000,-304.35510642,0.00041361,120]
[422113005,1778577129000,-500.0,0.00041361,120]
[422113002,1778577129000,-500.0,0.00041361,120]
[422113034,1778577129000,-500.0,0.00041361,120]
[422113035,1778577129000,-500.0,0.00041361,120]
[422113037,1778577129000,-369.48885031,0.00041361,120]
[422113068,1778577129000,-668.55,0.00041361,120]
[422113067,1778577129000,-668.55,0.00041361,120]
[422113066,1778577129000,-668.55,0.00041361,120]
[422113070,1778577129000,-668.55,0.00041361,120]
[422113074,1778577129000,-668.55,0.00041361,120]
[422113078,1778577129000,-668.55,0.00041361,120]
[422113075,1778577129000,-668.55,0.00041361,120]
[422113079,1778577129000,-668.55,0.00041361,120]
[422113082,1778577129000,-668.68542653,0.00041361,120]
[422113076,1778577129000,-618.83869395,0.00041361,120]
[422113081,1778577129000,-668.55,0.00041361,120]
[422113077,1778577129000,-668.55,0.00041361,120]
[422113080,1778577129000,-668.55,0.00041361,120]
[422113085,1778577129000,-500.0,0.00041361,120]
[422113086,1778577129000,-500.0,0.00041361,120]
[422113084,1778577129000,-500.0,0.00041361,120]
[422113088,1778577129000,-500.0,0.00041361,120]
[422113087,1778577129000,-500.0,0.00041361,120]
[422113093,1778577129000,-500.0,0.00041361,120]
[422113090,1778577129000,-500.0,0.00041361,120]
[422113089,1778577129000,-500.0,0.00041361,120]
[422113096,1778577129000,-500.0,0.00041361,120]
[422113091,1778577129000,-500.0,0.00041361,120]
[422113094,1778577129000,-500.0,0.00041361,120]
[422113095,1778577129000,-500.0,0.00041361,120]
[422113092,1778577129000,-500.0,0.00041361,120]
[422113036,1778577129000,-163.299,0.00041361,120]
[422113071,1778577129000,-668.55,0.00041361,120]
[422113069,1778577129000,-668.55,0.00041361,120]
[422113083,1778577129000,-576.69807972,0.00041361,120]
[422113061,1778577129000,-668.55,0.00041361,120]
[422113039,1778577129000,-354.12774735,0.00041361,120]
[422113065,1778577129000,-668.55,0.00041361,120]
[422113040,1778577129000,-500.0,0.00041361,120]
[422113043,1778577129000,-483.99276622,0.00041361,120]
[422113038,1778577129000,-195.16095091,0.00041361,120]
[422113046,1778577129000,-157.1831583,0.00041361,120]
[422113045,1778577129000,-310.77254525,0.00041361,120]
[422113044,1778577129000,-285.35605854,0.00041361,120]
[422113047,1778577129000,-278.39665769,0.00041361,120]
[422113050,1778577129000,-283.59081193,0.00041361,120]
[422113049,1778577129000,-500.0,0.00041361,120]
[422113051,1778577129000,-223.71661413,0.00041361,120]
[422113048,1778577129000,-244.3067202,0.00041361,120]
[422113057,1778577129000,-477.65755157,0.00041361,120]
[422113041,1778577129000,-500.0,0.00041361,120]
[422113054,1778577129000,-272.4812282,0.00041361,120]
[422113063,1778577129000,-668.55,0.00041361,120]
[422113072,1778577129000,-668.55,0.00041361,120]
[422113073,1778577129000,-668.55,0.00041361,120]
[422113062,1778577129000,-668.55,0.00041361,120]
[422113059,1778577129000,-668.55,0.00041361,120]
[422113055,1778577129000,-179.68912613,0.00041361,120]
[422113064,1778577129000,-668.55,0.00041361,120]
[422113056,1778577129000,-500.0,0.00041361,120]
[422113058,1778577129000,-668.55,0.00041361,120]
[422113053,1778577129000,-166.14983606,0.00041361,120]
[422113052,1778577129000,-207.89491107,0.00041361,120]
[422113060,1778577129000,-668.55,0.00041361,120]
[422113140,1778577130000,-500.0,0.00041361,120]
[422113142,1778577130000,-640.30406698,0.00041361,120]
[422113152,1778577130000,-8235.39,0.00041361,14]
[422113141,1778577130000,-8235.39,0.00041361,14]
[422113132,1778577130000,-8235.39,0.00041361,14]
[422113136,1778577130000,-500.0,0.00041361,120]
[422113133,1778577130000,-8235.39,0.00041361,14]
[422113135,1778577130000,-8235.39,0.00041361,14]
[422113131,1778577130000,-8235.39,0.00041361,14]
[422113137,1778577130000,-8235.39,0.00041361,14]
[422113127,1778577130000,-8235.39,0.00041361,14]
[422113134,1778577130000,-500.0,0.00041361,120]
[422113130,1778577130000,-8235.39,0.00041361,14]
[422113151,1778577130000,-500.0,0.00041361,120]
[422113159,1778577130000,-500.0,0.00041361,120]
[422113148,1778577130000,-8235.39,0.00041361,14]
[422113143,1778577130000,-8235.39,0.00041361,14]
[422113144,1778577130000,-8235.39,0.00041361,14]
[422113146,1778577130000,-8235.39,0.00041361,14]
[422113149,1778577130000,-500.0,0.00041361,120]
[422113145,1778577130000,-8235.39,0.00041361,14]
[422113150,1778577130000,-8235.39,0.00041361,14]
[422113164,1778577130000,-500.0,0.00041361,120]
[422113153,1778577130000,-580.14679784,0.00041361,120]
[422113155,1778577130000,-500.0,0.00041361,120]
[422113157,1778577130000,-500.0,0.00041361,120]
[422113154,1778577130000,-8235.51,0.00041361,14]
[422113156,1778577130000,-500.0,0.00041361,120]
[422113129,1778577130000,-8235.39,0.00041361,14]
[422113147,1778577130000,-8235.39,0.00041361,14]
[422113138,1778577130000,-500.0,0.00041361,120]
[422113100,1778577130000,-640.89530532,0.00041361,120]
[422113128,1778577130000,-8235.39,0.00041361,14]
[422113165,1778577130000,-500.0,0.00041361,120]
[422113099,1778577130000,-197.3417341,0.00041361,120]
[422113097,1778577130000,-500.0,0.00041361,120]
[422113101,1778577130000,-240.46054091,0.00041361,120]
[422113103,1778577130000,-164.18414904,0.00041361,120]
[422113104,1778577130000,-233.45160459,0.00041361,120]
[422113102,1778577130000,-189.7812577,0.00041361,120]
[422113111,1778577130000,-244.8539022,0.00041361,120]
[422113105,1778577130000,-815.0,0.00041361,120]
[422113110,1778577130000,-500.0,0.00041361,120]
[422113107,1778577130000,-523.38017319,0.00041361,120]
[422113108,1778577130000,-261.41897462,0.00041361,120]
[422113106,1778577130000,-539.90771362,0.00041361,120]
[422113112,1778577130000,-299.62276957,0.00041361,120]
[422113109,1778577130000,-317.51614283,0.00041361,120]
[422113113,1778577130000,-228.75683949,0.00041361,120]
[422113114,1778577130000,-513.34574878,0.00041361,120]
[422113117,1778577130000,-366.39051053,0.00041361,120]
[422113116,1778577130000,-355.6042891,0.00041361,60]
[422113115,1778577130000,-500.0,0.00041361,60]
[422113123,1778577130000,-8235.39,0.00041361,14]
[422113120,1778577130000,-177.17790501,0.00041361,120]
[422113121,1778577130000,-179.74431867,0.00041361,120]
[422113122,1778577130000,-216.79252321,0.00041361,120]
[422113124,1778577130000,-8235.39,0.00041361,14]
[422113125,1778577130000,-8235.39,0.00041361,14]
[422113119,1778577130000,-420.0,0.00041361,120]
[422113118,1778577130000,-398.09224568,0.00041361,120]
[422113126,1778577130000,-8235.39,0.00041361,14]
[422113139,1778577130000,-8235.39,0.00041361,14]
[422113158,1778577130000,-500.0,0.00041361,120]
[422113098,1778577130000,-500.0,0.00041361,120]
[422113161,1778577130000,-500.0,0.00041361,120]
[422113195,1778577130000,-533.77,0.00041361,120]
[422113198,1778577130000,-168.19811008,0.00041361,120]
[422113196,1778577130000,-533.77,0.00041361,120]
[422113199,1778577130000,-5100.0,0.00041361,40]
[422113197,1778577130000,-533.87526146,0.00041361,120]
[422113204,1778577130000,-393.0,0.00041361,120]
[422113200,1778577130000,-500.0,0.00041361,120]
[422113203,1778577130000,-500.20006985,0.00041361,120]
[422113207,1778577130000,-500.0,0.00041361,120]
[422113217,1778577130000,-3367.25,0.00041361,120]
[422113218,1778577130000,-3367.25,0.00041361,120]
[422113206,1778577130000,-500.0,0.00041361,120]
[422113208,1778577130000,-500.0,0.00041361,120]
[422113211,1778577130000,-370.2499151,0.00041361,120]
[422113209,1778577130000,-500.0,0.00041361,120]
[422113210,1778577130000,-500.0,0.00041361,120]
[422113213,1778577130000,-3367.25,0.00041361,120]
[422113215,1778577130000,-3367.25,0.00041361,120]
[422113216,1778577130000,-3367.25,0.00041361,120]
[422113214,1778577130000,-3367.25,0.00041361,120]
[422113212,1778577130000,-3367.25,0.00041361,120]
[422113219,1778577130000,-3367.25,0.00041361,120]
[422113226,1778577130000,-3367.25,0.00041361,120]
[422113221,1778577130000,-3367.25,0.00041361,120]
[422113223,1778577130000,-3367.25,0.00041361,120]
[422113220,1778577130000,-3367.25,0.00041361,120]
[422113222,1778577130000,-3367.25,0.00041361,120]
[422113225,1778577130000,-3367.25,0.00041361,120]
[422113224,1778577130000,-3367.25,0.00041361,120]
[422113205,1778577130000,-500.0,0.00041361,120]
[422113201,1778577130000,-500.0,0.00041361,120]
[422113160,1778577130000,-500.0,0.00041361,120]
[422113194,1778577130000,-533.77,0.00041361,120]
[422113202,1778577130000,-500.0,0.00041361,120]
[422113162,1778577130000,-500.0,0.00041361,120]
[422113163,1778577130000,-500.0,0.00041361,120]
[422113166,1778577130000,-500.0,0.00041361,120]
[422113171,1778577130000,-500.0,0.00041361,120]
[422113175,1778577130000,-533.77,0.00041361,120]
[422113169,1778577130000,-545.44609774,0.00041361,120]
[422113167,1778577130000,-500.0,0.00041361,120]
[422113172,1778577130000,-459.80823665,0.00041361,120]
[422113173,1778577130000,-305.79571268,0.00041361,120]
[422113170,1778577130000,-500.0,0.00041361,120]
[422113174,1778577130000,-533.77,0.00041361,120]
[422113176,1778577130000,-533.77,0.00041361,120]
[422113177,1778577130000,-533.77,0.00041361,120]
[422113178,1778577130000,-533.77,0.00041361,120]
[422113168,1778577130000,-500.0,0.00041361,120]
[422113190,1778577130000,-533.77,0.00041361,120]
[422113179,1778577130000,-533.77,0.00041361,120]
[422113187,1778577130000,-533.77,0.00041361,120]
[422113184,1778577130000,-533.77,0.00041361,120]
[422113188,1778577130000,-533.77,0.00041361,120]
[422113191,1778577130000,-533.77,0.00041361,120]
[422113186,1778577130000,-533.77,0.00041361,120]
[422113181,1778577130000,-533.77,0.00041361,120]
[422113192,1778577130000,-533.77,0.00041361,120]
[422113193,1778577130000,-533.77,0.00041361,120]
[422113182,1778577130000,-533.77,0.00041361,120]
[422113185,1778577130000,-533.77,0.00041361,120]
[422113180,1778577130000,-533.77,0.00041361,120]
[422113183,1778577130000,-533.77,0.00041361,120]
[422113189,1778577130000,-533.77,0.00041361,120]
[422113263,1778577131000,-3999.48,0.00041361,120]
[422113272,1778577131000,-3999.60252671,0.00041361,120]
[422113267,1778577131000,-228.46073224,0.00041361,120]
[422113266,1778577131000,-3999.48,0.00041361,120]
[422113265,1778577131000,-3999.48,0.00041361,120]
[422113259,1778577131000,-3999.48,0.00041361,120]
[422113269,1778577131000,-3999.48,0.00041361,120]
[422113261,1778577131000,-3999.48,0.00041361,120]
[422113271,1778577131000,-3999.48,0.00041361,120]
[422113262,1778577131000,-3999.48,0.00041361,120]
[422113270,1778577131000,-3999.48,0.00041361,120]
[422113274,1778577131000,-152.1251069,0.00041361,120]
[422113264,1778577131000,-3999.48,0.00041361,120]
[422113276,1778577131000,-642.12,0.00041361,120]
[422113294,1778577131000,-642.12,0.00041361,120]
[422113283,1778577131000,-642.12,0.00041361,120]
[422113275,1778577131000,-642.12,0.00041361,120]
[422113280,1778577131000,-642.12,0.00041361,120]
[422113281,1778577131000,-642.12,0.00041361,120]
[422113277,1778577131000,-642.12,0.00041361,120]
[422113278,1778577131000,-642.12,0.00041361,120]
[422113279,1778577131000,-642.12,0.00041361,120]
[422113282,1778577131000,-642.12,0.00041361,120]
[422113284,1778577131000,-642.12,0.00041361,120]
[422113285,1778577131000,-642.12,0.00041361,120]
[422113286,1778577131000,-642.12,0.00041361,120]
[422113297,1778577131000,-642.12,0.00041361,120]
[422113296,1778577131000,-642.12,0.00041361,120]
[422113268,1778577131000,-3999.48,0.00041361,120]
[422113273,1778577131000,-300.90043353,0.00041361,30]
[422113260,1778577131000,-3999.48,0.00041361,120]
[422113241,1778577131000,-500.0,0.00041361,14]
[422113255,1778577131000,-3999.48,0.00041361,120]
[422113287,1778577131000,-642.12,0.00041361,120]
[422113231,1778577131000,-3367.25,0.00041361,120]
[422113227,1778577131000,-3367.25,0.00041361,120]
[422113230,1778577131000,-3367.25,0.00041361,120]
[422113229,1778577131000,-3367.25,0.00041361,120]
[422113232,1778577131000,-3367.25,0.00041361,120]
[422113228,1778577131000,-3367.25,0.00041361,120]
[422113234,1778577131000,-3367.25,0.00041361,120]
[422113245,1778577131000,-229.11670036,0.00041361,30]
[422113244,1778577131000,-641.6236526,0.00041361,90]
[422113236,1778577131000,-179.45483752,0.00041361,120]
[422113239,1778577131000,-500.0,0.00041361,14]
[422113233,1778577131000,-3367.25,0.00041361,120]
[422113238,1778577131000,-500.0,0.00041361,14]
[422113250,1778577131000,-3999.48,0.00041361,120]
[422113235,1778577131000,-3367.26277717,0.00041361,120]
[422113240,1778577131000,-500.0,0.00041361,14]
[422113242,1778577131000,-500.0,0.00041361,14]
[422113237,1778577131000,-500.0,0.00041361,14]
[422113246,1778577131000,-414.77514872,0.00041361,120]
[422113249,1778577131000,-3999.48,0.00041361,120]
[422113251,1778577131000,-3999.48,0.00041361,120]
[422113257,1778577131000,-3999.48,0.00041361,120]
[422113248,1778577131000,-3999.48,0.00041361,120]
[422113252,1778577131000,-3999.48,0.00041361,120]
[422113258,1778577131000,-3999.48,0.00041361,120]
[422113253,1778577131000,-3999.48,0.00041361,120]
[422113247,1778577131000,-3999.48,0.00041361,120]
[422113254,1778577131000,-3999.48,0.00041361,120]
[422113256,1778577131000,-171.59196244,0.00041361,120]
[422113243,1778577131000,-247.6361595,0.00041361,14]
[422113292,1778577131000,-642.12,0.00041361,120]
[422113289,1778577131000,-198.73941051,0.00041361,120]
[422113354,1778577131000,-5392.97949028,0.00041361,120]
[422113333,1778577131000,-130425.6668085,0.00041361,2]
[422113337,1778577131000,-226.39493176,0.00041361,30]
[422113326,1778577131000,-621.82,0.00041361,120]
[422113334,1778577131000,-682105.99405532,0.00041361,30]
[422113331,1778577131000,-621.82,0.00041361,120]
[422113330,1778577131000,-621.82,0.00041361,120]
[422113329,1778577131000,-621.82,0.00041361,120]
[422113338,1778577131000,-153.16409453,0.00041361,120]
[422113332,1778577131000,-621.8280682,0.00041361,120]
[422113335,1778577131000,-348.935896,0.00041361,120]
[422113336,1778577131000,-171.19670735,0.00041361,120]
[422113340,1778577131000,-193.15668341,0.00041361,120]
[422113341,1778577131000,-319.55667459,0.00041361,120]
[422113352,1778577131000,-193.50399389,0.00041361,120]
[422113328,1778577131000,-621.82,0.00041361,120]
[422113339,1778577131000,-164.32825037,0.00041361,120]
[422113351,1778577131000,-541.88811751,0.00041361,120]
[422113346,1778577131000,-500.0,0.00041361,120]
[422113347,1778577131000,-500.0,0.00041361,120]
[422113345,1778577131000,-230.46973281,0.00041361,120]
[422113348,1778577131000,-500.0,0.00041361,120]
[422113343,1778577131000,-152.04213622,0.00041361,60]
[422113349,1778577131000,-500.0,0.00041361,120]
[422113344,1778577131000,-153.99645889,0.00041361,30]
[422113353,1778577131000,-289.31325578,0.00041361,120]
[422113355,1778577131000,-790.2266188,0.00041361,30]
[422113356,1778577131000,-165.7657159,0.00041361,120]
[422113358,1778577131000,-164.80761712,0.00041361,10]
[422113357,1778577131000,-7483.18641484,0.00041361,60]
[422113288,1778577131000,-642.12,0.00041361,120]
[422113350,1778577131000,-500.0,0.00041361,120]
[422113327,1778577131000,-621.82,0.00041361,120]
[422113342,1778577131000,-1644.76752413,0.00041361,90]
[422113319,1778577131000,-621.82,0.00041361,120]
[422113325,1778577131000,-621.82,0.00041361,120]
[422113291,1778577131000,-642.12,0.00041361,120]
[422113293,1778577131000,-642.12,0.00041361,120]
[422113290,1778577131000,-642.12,0.00041361,120]
[422113298,1778577131000,-642.12,0.00041361,120]
[422113302,1778577131000,-500.0,0.00041361,120]
[422113303,1778577131000,-500.0,0.00041361,120]
[422113299,1778577131000,-642.18819179,0.00041361,120]
[422113308,1778577131000,-172.28058545,0.00041361,120]
[422113307,1778577131000,-168.73106511,0.00041361,120]
[422113301,1778577131000,-305.81194586,0.00041361,120]
[422113306,1778577131000,-500.0,0.00041361,120]
[422113311,1778577131000,-621.82,0.00041361,120]
[422113300,1778577131000,-168.93676579,0.00041361,30]
[422113304,1778577131000,-500.0,0.00041361,120]
[422113295,1778577131000,-642.12,0.00041361,120]
[422113309,1778577131000,-621.82,0.00041361,120]
[422113305,1778577131000,-584.97400574,0.00041361,120]
[422113321,1778577131000,-621.82,0.00041361,120]
[422113320,1778577131000,-621.82,0.00041361,120]
[422113318,1778577131000,-621.82,0.00041361,120]
[422113316,1778577131000,-621.82,0.00041361,120]
[422113317,1778577131000,-621.82,0.00041361,120]
[422113312,1778577131000,-621.82,0.00041361,120]
[422113322,1778577131000,-621.82,0.00041361,120]
[422113324,1778577131000,-621.82,0.00041361,120]
[422113315,1778577131000,-621.82,0.00041361,120]
[422113323,1778577131000,-621.82,0.00041361,120]
[422113313,1778577131000,-621.82,0.00041361,120]
[422113310,1778577131000,-621.82,0.00041361,120]
[422113314,1778577131000,-621.82,0.00041361,120]
[422113399,1778577132000,-500.0,0.00041361,120]
[422113402,1778577132000,-500.0,0.00041361,120]
[422113400,1778577132000,-500.0,0.00041361,120]
[422113398,1778577132000,-500.0,0.00041361,120]
[422113393,1778577132000,-520.54741502,0.00041361,120]
[422113396,1778577132000,-500.0,0.00041361,120]
[422113403,1778577132000,-500.0,0.00041361,120]
[422113397,1778577132000,-500.0,0.00041361,120]
[422113405,1778577132000,-500.0,0.00041361,120]
[422113404,1778577132000,-500.0,0.00041361,120]
[422113394,1778577132000,-500.0,0.00041361,120]
[422113395,1778577132000,-500.0,0.00041361,120]
[422113406,1778577132000,-500.0,0.00041361,120]
[422113401,1778577132000,-500.0,0.00041361,120]
[422113409,1778577132000,-500.0,0.00041361,120]
[422113416,1778577132000,-1649.71,0.00041361,120]
[422113410,1778577132000,-500.0,0.00041361,120]
[422113415,1778577132000,-1649.71,0.00041361,120]
[422113407,1778577132000,-500.0,0.00041361,120]
[422113411,1778577132000,-500.0,0.00041361,120]
[422113412,1778577132000,-171.42415759,0.00041361,120]
[422113414,1778577132000,-15868.23719706,0.00041361,2]
[422113419,1778577132000,-1649.71,0.00041361,120]
[422113413,1778577132000,-662.0,0.00041361,120]
[422113418,1778577132000,-1649.71,0.00041361,120]
[422113417,1778577132000,-1649.71,0.00041361,120]
[422113421,1778577132000,-1649.71,0.00041361,120]
[422113425,1778577132000,-1649.71,0.00041361,120]
[422113429,1778577132000,-1649.71,0.00041361,120]
[422113389,1778577132000,-294.45270933,0.00041361,120]
[422113408,1778577132000,-500.0,0.00041361,120]
[422113388,1778577132000,-999.999999,0.00041361,120]
[422113422,1778577132000,-1649.71,0.00041361,120]
[422113385,1778577132000,-1196.71996786,0.00041361,120]
[422113363,1778577132000,-500.0,0.00041361,120]
[422113362,1778577132000,-500.0,0.00041361,120]
[422113359,1778577132000,-983.81800735,0.00041361,120]
[422113360,1778577132000,-279.29539797,0.00041361,120]
[422113364,1778577132000,-500.0,0.00041361,120]
[422113361,1778577132000,-500.0,0.00041361,120]
[422113365,1778577132000,-500.0,0.00041361,120]
[422113367,1778577132000,-448.75897432,0.00041361,120]
[422113378,1778577132000,-243.22129551,0.00041361,120]
[422113368,1778577132000,-150.26760862,0.00041361,120]
[422113366,1778577132000,-500.0,0.00041361,120]
[422113370,1778577132000,-155.17570818,0.00041361,120]